bitfinex/quotes_ETHUSD_20241019
["timestamp","ask_amount","ask_price","bid_price","bid_amount"]
[1729363858144,0.8073,2642.7,2642.2,0.55]
[1729363858145,0.35424792,2642.4,2642.2,0.55]
[1729363858344,0.8073,2642.7,2642.2,0.55]
[1729363858642,0.35426432,2642.6,2642.2,0.55]
[1729363858841,0.35426432,2642.5,2642.2,0.55]
[1729363859086,0.35426432,2642.4,2642.2,0.55]
[1729363859274,0.8073,2642.7,2642.2,0.81868478]
[1729363859449,0.3542818,2642.6,2642.2,0.55]
[1729363859649,0.3542818,2642.5,2642.2,0.55]
[1729363859989,0.3542818,2642.4,2642.2,0.55]
[1729363860170,0.8073,2642.7,2642.2,0.55]
[1729363860373,0.35430032,2642.6,2642.2,0.55]
[1729363860684,0.35430032,2642.5,2642.2,0.55]
[1729363860883,0.35430032,2642.4,2642.2,0.55]
[1729363861085,0.35430032,2642.3,2642.2,0.81868478]
[1729363861303,0.35430032,2642.3,2642.2,0.96784213]
[1729363862773,0.35430032,2642.3,2642.2,0.81868478]
[1729363863200,0.35430032,2642.3,2642.2,1.76065894]
[1729363865902,0.35430032,2642.3,2642.2,0.81868478]
[1729363866276,0.35430032,2642.3,2642.2,1.76069599]
[1729363866480,0.8073,2642.7,2642.2,1.76069768]
[1729363866788,0.35449745,2642.6,2642.2,1.34280949]
[1729363866979,0.35449745,2642.5,2642.2,1.34280949]
[1729363867165,0.35449745,2642.4,2642.2,1.34280949]
[1729363867365,0.35449745,2642.3,2642.2,1.34280949]
[1729363867588,0.35449745,2642.3,2642.2,1.49204163]
[1729363868300,0.35449745,2642.6,2642.2,1.49204163]
[1729363868505,0.35449745,2642.5,2642.2,1.34280949]
[1729363868805,0.35449745,2642.4,2642.2,1.34280949]
[1729363869006,0.35449745,2642.3,2642.2,1.34280949]
[1729363869201,0.35449745,2642.6,2642.2,1.76071235]
[1729363869410,0.35449745,2642.5,2642.2,1.34280949]
[1729363869598,0.35449745,2642.4,2642.2,1.34280949]
[1729363869793,0.35449745,2642.3,2642.2,1.34280949]
[1729363869995,0.35449745,2642.6,2642.2,1.49204215]
[1729363870195,0.35451269,2642.5,2642.2,1.34280949]
[1729363870522,0.35451269,2642.4,2642.2,1.34280949]
[1729363870828,0.35451269,2642.3,2642.2,1.34280949]
[1729363871031,0.35451269,2642.6,2642.2,1.76074911]
[1729363871258,0.35451269,2642.5,2642.2,1.34280949]
[1729363871536,0.35451269,2642.4,2642.2,1.34280949]
[1729363871837,0.35451269,2642.3,2642.2,1.34280949]
[1729363872032,0.35451269,2642.6,2642.2,1.49206426]
[1729363872198,0.35451269,2642.5,2642.2,1.34280949]
[1729363872394,0.35451269,2642.4,2642.2,1.34280949]
[1729363872730,0.35451269,2642.3,2642.2,1.34280949]
[1729363872932,0.35451269,2642.6,2642.2,1.7607469]
[1729363873240,0.35451269,2642.5,2642.2,1.34280949]
[1729363873394,0.35451269,2642.4,2642.2,1.34280949]
[1729363873599,0.35451269,2642.3,2642.2,1.34280949]
[1729363873823,0.35451269,2642.3,2642.2,1.49206447]
[1729363874022,0.35451269,2642.3,2642.2,1.77567475]
[1729363874223,0.35451269,2642.6,2642.2,1.77567475]
[1729363874540,0.35451269,2642.5,2642.2,1.34280949]
[1729363874736,0.35451269,2642.4,2642.2,1.34280949]
[1729363874939,0.35451269,2642.3,2642.2,1.34280949]
[1729363875234,0.35451269,2642.3,2642.2,1.49206359]
[1729363875528,0.35451269,2642.6,2642.2,1.49206359]
[1729363875734,0.35451269,2642.5,2642.2,1.34280949]
[1729363875911,0.35451269,2642.4,2642.2,1.34280949]
[1729363876108,0.35451269,2642.3,2642.2,1.34280949]
[1729363876331,0.35451269,2642.3,2642.2,1.92027304]
[1729363876503,0.35451269,2642.6,2642.2,1.12693248]
[1729363876704,0.35454934,2642.5,2642.4,0.55]
[1729363877103,3.40523,2643.0,2642.3,1.34325994]
[1729363877308,0.35454978,2642.9,2642.7,0.55]
[1729363877626,3.40491,2643.3,2642.7,0.6256722]
[1729363877802,0.680971,2643.2,2642.7,0.6256722]
[1729363878395,0.680971,2643.2,2642.7,1.41893214]
[1729363882137,0.680971,2643.2,2642.7,0.6256722]
[1729363882323,4.15581,2643.3,2642.7,0.6256722]
[1729363884831,0.7509,2643.3,2642.7,0.6256722]
[1729363885145,0.7509,2643.3,2642.7,0.55]
[1729363885146,3.40503,2643.2,2642.7,0.55]
[1729363903122,4.15574,2643.3,2642.7,0.55]
[1729363907981,3.40496,2643.2,2642.7,0.55]
[1729363909755,3.40529,2643.0,2642.7,0.55]
[1729363909955,3.40543,2642.9,2642.4,1.58805994]
[1729363910160,3.40543,2642.9,2642.5,0.14997549]
[1729363910370,3.40543,2642.9,2642.4,1.58805994]
[1729363910575,3.40543,2642.9,2642.5,0.1499532]
[1729363910776,3.40543,2642.9,2642.4,1.58805994]
[1729363911085,3.40543,2642.9,2642.5,0.14995225]
[1729363911271,3.40543,2642.9,2642.4,1.58805994]
[1729363911475,3.40543,2642.9,2642.5,0.1499419]
[1729363911645,3.40543,2642.9,2642.4,1.58805994]
[1729363911987,3.40543,2642.9,2642.5,0.14994222]
[1729363912144,3.40543,2642.9,2642.4,1.58805994]
[1729363912484,3.40543,2642.9,2642.5,0.1499418]
[1729363912685,3.40543,2642.9,2642.4,1.58805994]
[1729363912892,3.40543,2642.9,2642.5,0.14992766]
[1729363913077,3.40543,2642.9,2642.4,1.58805994]
[1729363913252,3.40543,2642.9,2642.5,0.14992923]
[1729363913453,3.40543,2642.9,2642.4,1.58805994]
[1729363913786,3.40543,2642.9,2642.5,0.14992343]
[1729363913950,3.40543,2642.9,2642.4,1.58805994]
[1729363914148,3.40543,2642.9,2642.5,0.94318267]
[1729363914381,3.40543,2642.9,2642.5,0.79325994]
[1729363914551,3.40543,2642.9,2642.4,1.58805994]
[1729363914752,3.40543,2642.9,2642.5,0.14991457]
[1729363914954,3.40543,2642.9,2642.4,1.58805994]
[1729363915272,3.40543,2642.9,2642.5,0.94317457]
[1729363915585,3.40543,2642.9,2642.5,0.79325994]
[1729363917087,3.40552,2642.8,2642.5,0.79325994]
[1729363921314,1.524332,2642.9,2642.5,0.79325994]
[1729363921507,4.17195,2642.9,2642.5,0.79325994]
[1729363921908,3.4055,2642.8,2642.5,0.79325994]
[1729363925005,0.7666,2642.9,2642.5,0.79325994]
[1729363925208,4.17198,2642.9,2642.5,0.79325994]
[1729363926279,4.17198,2642.9,2642.6,0.79325994]
[1729363930391,0.7666,2642.9,2642.6,0.79325994]
[1729363933517,3.40511,2643.1,2642.7,1.59515994]
[1729363936591,3.40511,2643.1,2642.7,0.8019]
[1729363936880,3.40511,2643.1,2642.7,1.59515994]
[1729363937724,3.40511,2643.1,2642.7,0.8019]
[1729363938015,3.40511,2643.1,2642.7,1.59515994]
[1729363938179,3.99728129,2643.1,2642.7,1.59515994]
[1729363943713,7.40244129,2643.1,2642.7,1.59515994]
[1729363949520,3.40522,2643.0,2642.7,1.59515994]
[1729363951753,3.99728129,2643.1,2642.7,1.59515994]
[1729363951951,3.99728129,2643.1,2642.7,2.03129108]
[1729363952159,3.99728129,2643.1,2642.8,0.79325994]
[1729363952354,0.59217129,2643.1,2642.8,0.79325994]
[1729363952670,0.59217129,2643.1,2642.9,0.778]
[1729363952876,0.59217129,2643.1,2642.9,1.57125994]
[1729363953470,3.40484,2643.3,2643.0,0.27565983]
[1729363953829,6.80975,2643.3,2642.9,1.57125994]
[1729363954042,3.40484,2643.3,2642.9,1.57125994]
[1729363963114,3.40484,2643.3,2642.9,0.778]
[1729363963317,3.40484,2643.3,2642.9,1.57125994]
[1729363964077,3.40484,2643.3,2642.9,0.778]
[1729363964305,3.40484,2643.3,2642.9,1.09727294]
[1729363964710,3.40484,2643.3,2642.9,1.89053288]
[1729363965321,3.40484,2643.3,2642.9,1.09727294]
[1729363965831,3.40484,2643.3,2642.9,1.89053288]
[1729363967127,3.40484,2643.3,2642.9,1.09727294]
[1729363968005,3.40484,2643.3,2642.9,0.778]
[1729363968925,0.59214391,2643.4,2642.9,0.778]
[1729363969332,3.99684391,2643.4,2642.9,1.57125994]
[1729363975314,3.40489,2643.3,2642.9,1.57125994]
[1729363975518,3.40489,2643.3,2642.9,0.778]
[1729363976326,3.40489,2643.3,2642.9,1.57125994]
[1729363982952,3.40489,2643.3,2642.9,0.778]
[1729363985477,3.40489,2643.3,2642.9,1.57125994]
[1729363985681,3.40489,2643.3,2642.9,0.778]
[1729363986643,3.40489,2643.3,2642.9,1.57125994]
[1729363987582,3.99684391,2643.4,2642.9,1.57125994]
[1729363996188,3.99684391,2643.4,2643.0,0.79325994]
[1729364001156,3.40484,2643.3,2643.0,0.79325994]
[1729364005968,3.40497,2643.2,2643.0,0.79325994]
[1729364006167,3.40497,2643.2,2642.9,1.57125994]
[1729364007669,3.40497,2643.2,2643.0,0.79325994]
[1729364008808,4.78626391,2643.4,2643.0,0.79325994]
[1729364008995,5.24058143,2643.4,2643.0,0.79325994]
[1729364010089,4.45128143,2643.4,2643.1,0.7553]
[1729364010406,3.99696391,2643.4,2643.1,0.7553]
[1729364012073,3.40484,2643.3,2643.1,0.7553]
[1729364035176,6.80976,2643.3,2643.1,0.7553]
[1729364035378,3.40484,2643.3,2643.1,0.7553]
[1729364052749,3.40464,2643.5,2643.1,0.7553]
[1729364052948,3.40471,2643.4,2643.1,0.7553]
[1729364053448,3.40471,2643.4,2643.1,1.54789938]
[1729364053804,3.40471,2643.4,2643.1,0.7553]
[1729364058543,3.40464,2643.5,2643.1,0.7553]
[1729364058744,3.40464,2643.5,2643.1,1.82157923]
[1729364059306,3.40464,2643.5,2643.2,0.55]
[1729364062537,6.80929,2643.5,2643.2,0.55]
[1729364062774,3.40464,2643.5,2643.2,0.55]
[1729364063596,3.40464,2643.5,2643.1,1.54789938]
[1729364085600,6.80931,2643.5,2643.1,1.54789938]
[1729364085804,3.40464,2643.5,2643.1,1.54789938]
[1729364087313,7.40141713,2643.5,2643.1,1.54789938]
[1729364087521,3.99673713,2643.5,2643.1,1.54789938]
[1729364117047,3.40471,2643.4,2643.1,1.54789938]
[1729364117445,1.23976071,2643.4,2643.0,0.79259938]
[1729364117783,3.40509,2643.1,2642.9,0.79259938]
[1729364118489,3.40509,2643.1,2642.8,0.79259938]
[1729364118693,3.40522,2643.0,2642.8,0.79259938]
[1729364120450,3.40522,2643.0,2642.7,1.55649938]
[1729364121349,3.40497,2643.2,2642.7,1.9895591]
[1729364121585,3.40497,2643.2,2642.8,0.79259938]
[1729364121897,6.81002,2643.2,2642.8,0.79259938]
[1729364122195,3.40509,2643.1,2642.8,0.79259938]
[1729364123376,3.40509,2643.1,2642.7,1.55649938]
[1729364124258,3.40509,2643.1,2642.8,0.79259938]
[1729364124467,3.40509,2643.1,2642.7,1.55649938]
[1729364147656,3.99725726,2643.1,2642.7,1.55649938]
[1729364150050,3.40509,2643.1,2642.7,1.55649938]
[1729364152264,4.472327,2642.8,2642.7,1.55649938]
[1729364152463,4.472327,2642.8,2642.7,1.70584409]
[1729364157185,4.472327,2642.8,2642.7,1.70584111]
[1729364158980,4.472327,2642.8,2642.7,0.91324173]
[1729364159639,4.472327,2642.8,2642.7,0.14934173]
[1729364160654,4.472327,2642.8,2642.7,1.3382408]
[1729364160852,4.472327,2642.8,2642.7,0.1493396]
[1729364161301,4.472327,2642.8,2642.7,0.14933897]
[1729364161505,4.472327,2642.8,2642.7,1.33823804]
[1729364161659,4.472327,2642.8,2642.7,0.14933897]
[1729364161860,4.472327,2642.8,2642.7,1.33823804]
[1729364163690,4.472327,2642.8,2642.7,1.18889907]
[1729364163898,4.472327,2642.8,2642.7,1.33822294]
[1729364166497,4.472327,2642.8,2642.7,1.33811108]
[1729364167274,4.472327,2642.8,2642.7,1.33813214]
[1729364171022,4.472327,2642.8,2642.7,1.33813307]
[1729364171380,4.472327,2642.8,2642.7,1.33813741]
[1729364171583,4.472327,2642.8,2642.7,1.73454896]
[1729364173940,4.472327,2642.8,2642.7,0.1493502]
[1729364174227,4.472327,2642.8,2642.7,1.73452943]
[1729364174604,4.472327,2642.8,2642.7,1.58519876]
[1729364174902,4.472327,2642.8,2642.7,1.73452411]
[1729364175286,4.472327,2642.8,2642.7,0.14932535]
[1729364176724,4.472327,2642.8,2642.7,1.73452411]
[1729364177634,4.472327,2642.8,2642.7,0.14932535]
[1729364177992,4.472327,2642.8,2642.7,1.73452411]
[1729364178193,4.472327,2642.8,2642.7,1.58519876]
[1729364178490,4.472327,2642.8,2642.6,1.58519876]
[1729364178703,4.472327,2642.8,2642.7,0.14929866]
[1729364180004,4.472327,2642.8,2642.7,1.73449742]
[1729364181521,4.472327,2642.8,2642.7,0.14929866]
[1729364181725,4.472327,2642.8,2642.7,1.73449742]
[1729364182635,4.472327,2642.8,2642.7,0.14929866]
[1729364183506,4.472327,2642.8,2642.7,1.33779883]
[1729364183741,4.472327,2642.8,2642.7,0.14929866]
[1729364184642,4.472327,2642.8,2642.7,1.33780398]
[1729364184801,4.472327,2642.8,2642.7,0.14929866]
[1729364185648,4.472327,2642.8,2642.7,0.14930164]
[1729364186932,4.472327,2642.8,2642.7,1.3377883]
[1729364187330,4.472327,2642.8,2642.7,0.14930164]
[1729364190227,4.472327,2642.8,2642.7,1.33775865]
[1729364193052,4.472327,2642.8,2642.7,1.18845701]
[1729364193213,4.472327,2642.8,2642.7,1.33777032]
[1729364193409,4.472327,2642.8,2642.7,1.33777184]
[1729364195729,4.472327,2642.8,2642.7,0.72072469]
[1729364195948,4.472327,2642.8,2642.7,3.66812345]
[1729364196119,4.472327,2642.8,2642.7,2.08292469]
[1729364196537,4.472327,2642.8,2642.7,4.0637502]
[1729364196756,4.472327,2642.8,2642.7,4.06373241]
[1729364198830,4.472327,2642.8,2642.7,2.0829069]
[1729364200456,4.472327,2642.8,2642.7,2.0828441]
[1729364200661,4.472327,2642.8,2642.7,3.66669442]
[1729364200975,4.472327,2642.8,2642.7,2.0828441]
[1729364202275,4.472327,2642.8,2642.7,4.06265054]
[1729364202475,4.472327,2642.8,2642.7,2.0828441]
[1729364203934,4.472327,2642.8,2642.7,1.93360986]
[1729364204170,4.472327,2642.8,2642.7,2.08282019]
[1729364204577,4.472327,2642.8,2642.7,3.6663363]
[1729364204778,4.472327,2642.8,2642.7,3.6663287]
[1729364205079,4.472327,2642.8,2642.7,3.666343]
[1729364206979,4.472327,2642.8,2642.7,2.08281259]
[1729364207310,4.472327,2642.8,2642.7,4.06261903]
[1729364207804,4.472327,2642.8,2642.7,4.06259975]
[1729364209707,4.472327,2642.8,2642.7,2.08279331]
[1729364210205,4.472327,2642.8,2642.7,4.06259975]
[1729364210404,4.472327,2642.8,2642.7,2.08279331]
[1729364212783,4.472327,2642.8,2642.7,4.06193517]
[1729364213001,4.472327,2642.8,2642.7,2.08279331]
[1729364214784,4.472327,2642.8,2642.7,1.93360986]
[1729364215421,4.472327,2642.8,2642.7,2.08279659]
[1729364218372,4.472327,2642.8,2642.7,1.93360986]
[1729364218579,4.472327,2642.8,2642.7,2.08280279]
[1729364219813,4.472327,2642.8,2642.7,3.66622705]
[1729364220111,4.472327,2642.8,2642.7,2.08280279]
[1729364221088,4.472327,2642.8,2642.7,3.66625821]
[1729364221501,4.472327,2642.8,2642.7,2.08280279]
[1729364222995,4.472327,2642.8,2642.7,3.66635167]
[1729364224398,4.472327,2642.8,2642.7,2.08280279]
[1729364225338,4.472327,2642.8,2642.7,3.66640178]
[1729364225741,5.242427,2642.8,2642.7,1.73287198]
[1729364225926,5.242427,2642.8,2642.7,1.33712321]
[1729364228148,5.242427,2642.8,2642.7,1.18793028]
[1729364228449,5.242427,2642.8,2642.7,1.33727252]
[1729364229803,5.242427,2642.8,2642.7,1.33726612]
[1729364230954,5.242427,2642.8,2642.7,0.14934224]
[1729364231307,5.242427,2642.8,2642.7,1.33730054]
[1729364231547,5.242427,2642.8,2642.7,0.14934224]
[1729364231745,4.472327,2642.8,2642.7,1.73302129]
[1729364233333,5.7937297,2642.8,2642.7,1.33734408]
[1729364233542,9.1991997,2642.8,2642.7,1.98021476]
[1729364233724,5.7937297,2642.8,2642.7,0.79221292]
[1729364233921,5.7937297,2642.8,2642.6,0.79221292]
[1729364234247,0.7947,2642.6,2642.5,1.18800184]
[1729364234452,0.7947,2642.6,2642.5,1.3372999]
[1729364235242,0.7947,2642.6,2642.5,1.33726967]
[1729364239137,0.7947,2642.6,2642.5,0.79211553]
[1729364242860,0.7947,2642.6,2642.4,0.79211553]
[1729364243031,0.7947,2642.6,2642.5,0.79211553]
[1729364243438,0.7947,2642.6,2642.4,0.79211553]
[1729364263088,0.7947,2642.6,2642.5,0.14944205]
[1729364264710,0.7947,2642.6,2642.4,0.79211553]
[1729364265064,0.7947,2642.6,2642.5,0.14944949]
[1729364267325,0.7947,2642.6,2642.5,0.94156502]
[1729364267927,0.7947,2642.6,2642.5,0.14944949]
[1729364268223,0.7947,2642.6,2642.5,0.94156502]
[1729364268814,0.7947,2642.6,2642.5,0.94161496]
[1729364269493,0.7947,2642.6,2642.5,0.14949943]
[1729364269698,0.7947,2642.6,2642.5,0.94161496]
[1729364270113,3.53071204,2642.5,2642.3,1.18800184]
[1729364270833,3.96325324,2642.5,2642.3,1.18800184]
[1729364270986,0.8029,2642.4,2642.2,1.18800184]
[1729364273119,0.8029,2642.4,2642.3,1.18800184]
[1729364277840,6.93658204,2642.5,2642.3,1.18800184]
[1729364277841,3.53071204,2642.5,2642.3,1.18800184]
[1729364279311,3.53071204,2642.5,2642.4,1.18800184]
[1729364282534,3.53071204,2642.5,2642.4,1.33628555]
[1729364284982,3.53071204,2642.5,2642.4,0.92978371]
[1729364285131,3.53071204,2642.5,2642.4,1.3793715]
[1729364285832,3.53071204,2642.5,2642.4,2.56892094]
[1729364286645,3.53071204,2642.5,2642.4,2.96305055]
[1729364286962,3.53071204,2642.5,2642.4,2.51346276]
[1729364289494,3.53071204,2642.5,2642.4,2.36517905]
[1729364289778,3.53071204,2642.5,2642.4,2.5134444]
[1729364293192,3.53071204,2642.5,2642.4,2.36517905]
[1729364293493,3.53071204,2642.5,2642.4,2.51310179]
[1729364298571,3.53071204,2642.5,2642.4,1.73160179]
[1729364300671,3.53071204,2642.5,2642.4,1.7316058]
[1729364301077,3.53071204,2642.5,2642.4,1.73161005]
[1729364304310,3.53071204,2642.5,2642.4,1.58367905]
[1729364304517,3.53071204,2642.5,2642.4,1.73162076]
[1729364311395,3.53071204,2642.5,2642.4,1.73146466]
[1729364311721,3.53071204,2642.5,2642.4,0.14778561]
[1729364311906,3.53071204,2642.5,2642.4,0.14778847]
[1729364312107,3.53071204,2642.5,2642.4,1.73146752]
[1729364314517,3.53071204,2642.5,2642.4,0.14778847]
[1729364314696,3.53071204,2642.5,2642.4,1.73146752]
[1729364315104,3.53071204,2642.5,2642.4,1.58367905]
[1729364315313,3.53071204,2642.5,2642.4,0.14781782]
[1729364315497,3.53071204,2642.5,2642.4,1.73149687]
[1729364319295,3.53071204,2642.5,2642.4,0.14781782]
[1729364319723,3.53071204,2642.5,2642.4,1.73149687]
[1729364322497,3.53071204,2642.5,2642.4,1.73148141]
[1729364325137,3.53071204,2642.5,2642.4,1.73147034]
[1729364326226,3.53071204,2642.5,2642.4,1.58367905]
[1729364326432,3.53071204,2642.5,2642.4,1.73147297]
[1729364329741,3.53071204,2642.5,2642.4,1.58367905]
[1729364329950,3.53071204,2642.5,2642.4,1.73147147]
[1729364333769,3.53071204,2642.5,2642.4,1.73146857]
[1729364337170,3.53071204,2642.5,2642.4,1.73148209]
[1729364338573,2.89628722,2642.5,2642.4,1.90945925]
[1729364338772,2.89628722,2642.5,2642.4,0.60155925]
[1729364339064,2.89628722,2642.5,2642.4,1.73425151]
[1729364339065,3.68588722,2642.5,2642.4,1.73425151]
[1729364340462,3.68588722,2642.5,2642.4,1.33777349]
[1729364340767,3.68588722,2642.5,2642.4,1.33777814]
[1729364342372,3.68588722,2642.5,2642.4,1.18997045]
[1729364342569,3.68588722,2642.5,2642.4,1.33773228]
[1729364343140,3.68588722,2642.5,2642.4,1.18965729]
[1729364343342,3.68588722,2642.5,2642.4,1.33740915]
[1729364344178,3.68588722,2642.5,2642.4,1.33739281]
[1729364346850,3.68588722,2642.5,2642.4,1.18964095]
[1729364347038,3.68588722,2642.5,2642.4,1.33738632]
[1729364354166,3.68588722,2642.5,2642.4,1.3373878]
[1729364354551,3.68588722,2642.5,2642.4,1.33738927]
[1729364357994,3.68588722,2642.5,2642.4,1.3374179]
[1729364362858,3.68588722,2642.5,2642.4,1.33743592]
[1729364363895,3.68588722,2642.5,2642.4,1.18964095]
[1729364364465,3.68588722,2642.5,2642.4,1.33745063]
[1729364364689,3.68588722,2642.5,2642.4,1.18964095]
[1729364364887,3.68588722,2642.5,2642.4,1.33745438]
[1729364365401,3.68588722,2642.5,2642.4,1.33745622]
[1729364368816,3.68588722,2642.5,2642.4,1.18964095]
[1729364369120,3.68588722,2642.5,2642.4,1.33746698]
[1729364373114,3.68588722,2642.5,2642.4,1.33747174]
[1729364375928,3.68588722,2642.5,2642.4,1.18964095]
[1729364376102,3.68588722,2642.5,2642.4,1.33746521]
[1729364379647,3.68588722,2642.5,2642.4,1.33746316]
[1729364383353,3.68588722,2642.5,2642.4,1.33746463]
[1729364386234,3.68588722,2642.5,2642.4,1.33746251]
[1729364390353,3.68588722,2642.5,2642.4,1.33747469]
[1729364393938,3.68588722,2642.5,2642.4,1.33748263]
[1729364397522,3.68588722,2642.5,2642.4,1.18964095]
[1729364397785,3.68588722,2642.5,2642.4,1.33749101]
[1729364397965,3.68588722,2642.5,2642.4,1.33749212]
[1729364400828,3.68588722,2642.5,2642.4,1.33749389]
[1729364401948,2.89628722,2642.5,2642.4,1.33749389]
[1729364402124,2.89628722,2642.5,2642.4,0.14785294]
[1729364402820,2.89628722,2642.5,2642.4,1.33827745]
[1729364403562,2.89628722,2642.5,2642.4,1.19042451]
[1729364403860,3.70558722,2642.5,2642.4,1.33830115]
[1729364404622,3.70558722,2642.5,2642.4,1.33830676]
[1729364407079,3.70558722,2642.5,2642.4,1.19042451]
[1729364407231,3.70558722,2642.5,2642.4,1.48617369]
[1729364407432,3.70558722,2642.5,2642.4,1.33829435]
[1729364409476,3.70558722,2642.5,2642.4,1.3382932]
[1729364409664,3.70558722,2642.5,2642.4,1.19042451]
[1729364409842,3.70558722,2642.5,2642.4,1.33829252]
[1729364410041,8.16314694,2642.5,2642.4,1.19042451]
[1729364410254,7.35384694,2642.5,2642.4,0.79378307]
[1729364410764,8.13254694,2642.5,2642.4,0.79378307]
[1729364414274,4.18469,2642.4,2642.3,0.79357047]
[1729364414481,5.33854469,2642.4,2642.3,0.79357047]
[1729364414947,4.55984469,2642.4,2642.2,0.79357047]
[1729364415281,5.33854469,2642.4,2642.2,0.79357047]
[1729364415660,3.40612,2642.3,2642.2,0.79357047]
[1729364417766,4.18482,2642.3,2642.2,0.79357047]
[1729364417949,5.94126232,2642.3,2642.2,0.79357047]
[1729364418847,4.18495,2642.2,2642.1,0.79357047]
[1729364422640,0.7787,2642.2,2642.1,0.79357047]
[1729364427452,0.7737,2642.2,2642.1,0.79357047]
[1729364429866,4.17995,2642.2,2642.1,0.79357047]
[1729364437627,4.17995,2642.2,2642.0,0.79357047]
[1729364437779,3.40638,2642.1,2642.0,0.79357047]
[1729364443516,3.40638,2642.1,2642.0,0.94149327]
[1729364445489,3.40638,2642.1,2642.0,0.79357047]
[1729364445689,3.40638,2642.1,2642.0,0.94151889]
[1729364445925,3.40638,2642.1,2642.0,0.79357047]
[1729364446111,3.40638,2642.1,2642.0,0.94151545]
[1729364449609,3.40638,2642.1,2642.0,0.79357047]
[1729364449796,3.40638,2642.1,2642.0,0.94155212]
[1729364449997,4.165,2642.1,2642.0,0.94155212]
[1729364450299,4.165,2642.1,2641.9,0.79357047]
[1729364450498,3.40638,2642.1,2641.9,0.79357047]
[1729364452700,3.40651,2642.0,2641.9,0.79357047]
[1729364454126,3.40651,2642.0,2641.8,1.19042451]
[1729364454610,3.40651,2642.0,2641.9,0.14796736]
[1729364455012,3.40651,2642.0,2641.8,1.19042451]
[1729364456038,3.40651,2642.0,2641.9,0.14796943]
[1729364456205,3.40651,2642.0,2641.8,1.19042451]
[1729364456404,3.40651,2642.0,2641.9,1.3383939]
[1729364457116,3.40651,2642.0,2641.9,1.19042451]
[1729364457299,3.40651,2642.0,2641.9,1.33839056]
[1729364458444,3.40651,2642.0,2641.9,1.33843711]
[1729364460845,3.40651,2642.0,2641.9,1.33844148]
[1729364463940,3.40651,2642.0,2641.9,1.19042451]
[1729364464150,3.40651,2642.0,2641.9,1.33844397]
[1729364466847,3.40651,2642.0,2641.9,0.14801946]
[1729364467003,3.40651,2642.0,2641.9,1.33844397]
[1729364467659,3.40651,2642.0,2641.9,0.14803828]
[1729364467948,3.40651,2642.0,2641.8,1.19042451]
[1729364469473,3.40651,2642.0,2641.9,0.14804144]
[1729364469774,3.40651,2642.0,2641.8,1.19042451]
[1729364470176,3.40651,2642.0,2641.9,0.14803864]
[1729364470689,3.40651,2642.0,2641.8,1.19042451]
[1729364472722,3.40651,2642.0,2641.9,0.79431535]
[1729364473181,3.40651,2642.0,2641.9,0.79430661]
[1729364473343,4.17371,2642.0,2641.9,0.79430661]
[1729364474783,4.17371,2642.0,2641.8,1.19042451]
[1729364474943,4.17371,2642.0,2641.9,0.7943316]
[1729364475777,4.17371,2642.0,2641.8,1.19042451]
[1729364476187,4.17371,2642.0,2641.9,0.79433769]
[1729364476569,4.17371,2642.0,2641.8,1.19042451]
[1729364477391,4.17371,2642.0,2641.9,0.7943371]
[1729364477596,4.17371,2642.0,2641.8,1.19042451]
[1729364478500,4.17371,2642.0,2641.9,0.14806964]
[1729364478797,4.17371,2642.0,2641.8,1.19042451]
[1729364479296,4.17371,2642.0,2641.9,0.1480819]
[1729364479456,4.17371,2642.0,2641.8,1.19042451]
[1729364479659,4.17371,2642.0,2641.9,0.7944008]
[1729364479894,4.17371,2642.0,2641.8,1.19042451]
[1729364480571,3.40663,2641.9,2641.8,1.19042451]
[1729364480785,3.40663,2641.9,2641.8,1.33850966]
[1729364480990,0.7672,2642.0,2641.8,1.33850966]
[1729364481201,4.17373,2642.0,2641.9,0.14808515]
[1729364481564,4.17373,2642.0,2641.9,0.14808349]
[1729364481962,4.17373,2642.0,2641.8,1.19042451]
[1729364481963,3.40663,2641.9,2641.8,1.19042451]
[1729364482265,3.40676,2641.8,2641.7,1.19042451]
[1729364482467,3.40676,2641.8,2641.7,1.33849402]
[1729364482993,3.40689,2641.7,2641.6,1.19042451]
[1729364483200,3.40689,2641.7,2641.6,0.14807406]
[1729364483801,3.40689,2641.7,2641.6,1.33973726]
[1729364484004,3.40702,2641.6,2641.5,1.1916632]
[1729364484213,3.40702,2641.6,2641.5,1.33971562]
[1729364485393,4.17422,2641.6,2641.5,1.1916632]
[1729364485772,5.0081397,2641.6,2641.4,1.1916632]
[1729364485972,3.40715,2641.5,2641.4,1.1916632]
[1729364486172,3.40715,2641.5,2641.4,1.33963233]
[1729364486888,3.99967533,2641.5,2641.4,1.33963233]
[1729364487318,3.99967533,2641.5,2641.4,0.79398558]
[1729364487608,4.90045683,2641.5,2641.4,0.79398558]
[1729364490399,3.99967533,2641.5,2641.4,0.79398558]
[1729364492983,0.59249691,2641.7,2641.6,0.79346222]
[1729364493197,0.39520064,2641.9,2641.6,0.79346222]
[1729364493898,3.80186064,2641.9,2641.6,0.79346222]
[1729364494612,3.80186064,2641.9,2641.7,0.79346222]
[1729364495490,3.80186064,2641.9,2641.6,0.79346222]
[1729364495731,3.80186064,2641.9,2641.7,0.79346222]
[1729364506757,7.20857064,2641.9,2641.7,0.79346222]
[1729364507159,3.40676,2641.8,2641.7,0.79346222]
[1729364512681,3.40676,2641.8,2641.6,1.1916632]
[1729364512682,3.40689,2641.7,2641.6,0.79346222]
[1729364513102,4.23289,2641.7,2641.6,0.79346222]
[1729364513756,3.40702,2641.6,2641.5,0.79346222]
[1729364515891,3.40702,2641.6,2641.4,1.1916632]
[1729364516094,4.23296,2641.7,2641.4,1.1916632]
[1729364516261,4.23296,2641.7,2641.6,0.79382698]
[1729364516262,3.40696,2641.7,2641.6,0.79382698]
[1729364536375,3.40696,2641.7,2641.5,1.9585632]
[1729364536577,3.40696,2641.7,2641.6,0.79429705]
[1729364538736,3.40696,2641.7,2641.5,1.1916632]
[1729364540973,3.40696,2641.7,2641.6,0.79437755]
[1729364541156,4.91365306,2641.7,2641.6,0.79437755]
[1729364549775,4.12785306,2641.7,2641.6,0.79437755]
[1729364550010,3.40696,2641.7,2641.6,0.79437755]
[1729364555378,3.40702,2641.6,2641.5,1.1916632]
[1729364555604,3.40702,2641.6,2641.5,1.33974665]
[1729364561307,3.4069,2641.7,2641.5,0.14808345]
[1729364561655,3.4069,2641.7,2641.6,1.19224022]
[1729364566188,3.4069,2641.7,2641.5,1.19224022]
[1729364566493,3.40702,2641.6,2641.5,1.19224022]
[1729364566803,3.40702,2641.6,2641.5,1.3403344]